fUSD/lending_fUSD_20260405
["ID","MTS","AMOUNT","RATE_DAILY","PERIOD"]
[419740650,1775347849266,-794.38,0.00015982,2]
[419740651,1775347849275,-500.0,0.00015982,2]
[419740652,1775347849284,-500.0,0.00015982,2]
[419740653,1775347849293,-267.02731271,0.00015982,2]
[419740654,1775347849304,-500.0,0.00015982,2]
[419740655,1775347849315,-500.0,0.00015982,2]
[419740656,1775347849326,-500.0,0.00015982,2]
[419740657,1775347849336,-789.72,0.00015982,2]
[419740658,1775347849346,-789.72,0.00015982,2]
[419740659,1775347849357,-789.72,0.00015982,2]
[419740660,1775347849366,-500.0,0.00015982,2]
[419740661,1775347849376,-500.0,0.00015982,2]
[419740662,1775347849385,-188.55,0.00015982,2]
[419740663,1775347849394,-530926.1188137,0.00015983,2]
[419740664,1775347849403,-4372.9689176,0.00015983,2]
[419740665,1775347849414,-135991.5789143,0.00015983,2]
[419740666,1775347849426,-6146.6637514,0.00015983,2]
[419740667,1775347849436,-1024.88946416,0.0001599,2]
[419740668,1775347849445,-151.0,0.00015997,2]
[419740669,1775347849454,-151.0,0.00015997,2]
[419740670,1775347849464,-151.0,0.00015997,2]
[419740671,1775347849473,-151.0,0.00015997,2]
[419740672,1775347849482,-151.0,0.00015997,2]
[419740673,1775347849491,-592.55,0.00015998,2]
[419740674,1775347849500,-592.55,0.00015998,2]
[419740675,1775347849510,-592.55,0.00015998,2]
[419740676,1775347849519,-592.55,0.00015998,2]
[419740677,1775347849529,-592.55,0.00015998,2]
[419740678,1775347849538,-592.71,0.00015998,2]
[419740679,1775347849549,-970.35,0.00015998,2]
[419740680,1775347849560,-970.35,0.00015998,2]
[419740681,1775347849571,-970.35,0.00015998,2]
[419740682,1775347849579,-970.35,0.00015998,2]
[419740683,1775347849589,-970.35,0.00015998,2]
[419740684,1775347849598,-970.56005898,0.00015998,2]
[419740685,1775347849607,-556.64,0.00015998,2]
[419740686,1775347849618,-556.64,0.00015998,2]
[419740687,1775347849628,-556.64,0.00015998,2]
[419740688,1775347849636,-556.64,0.00015998,2]
[419740689,1775347849646,-556.64,0.00015998,2]
[419740690,1775347849655,-556.73428468,0.00015998,2]
[419740691,1775347849665,-666.0,0.00015999,2]
[419740692,1775347849674,-742.99189388,0.00015999,2]
[419740693,1775347849683,-155.0,0.00015999,2]
[419740694,1775347849692,-794.38,0.00015999,2]
[419740695,1775347849701,-794.38,0.00015999,2]
[419740696,1775347849710,-794.38,0.00015999,2]
[419740697,1775347849720,-794.38,0.00015999,2]
[419740698,1775347849729,-794.38,0.00015999,2]
[419740699,1775347849738,-794.38197381,0.00015999,2]
[419740700,1775347849748,-500.0,0.00015999,2]
[419740701,1775347849757,-500.0,0.00015999,2]
[419740702,1775347849766,-500.0,0.00015999,2]
[419740703,1775347849775,-277.55659601,0.00015999,2]
[419740704,1775347849785,-789.72,0.00015999,2]
[419740705,1775347849795,-789.72,0.00015999,2]
[419740706,1775347849804,-789.72,0.00015999,2]
[419740707,1775347849813,-789.72,0.00015999,2]
[419740708,1775347849822,-789.72,0.00015999,2]
[419740709,1775347849831,-789.86463116,0.00015999,2]
[419740710,1775347849840,-152.1260409,0.00015999,2]
[419740711,1775347849850,-150.0,0.00016,2]
[419740712,1775347849859,-150.23775673,0.00016,2]
[419740713,1775347849869,-240.20283738,0.00016,2]
[419740714,1775347849878,-150.0,0.00016,2]
[419740715,1775347849887,-246.16007569,0.00016,2]
[419740716,1775347849896,-153.19744012,0.00016,2]
[419740717,1775347849906,-296.71799963,0.00016,2]
[419740718,1775347849915,-238.66948473,0.00016,2]
[419740719,1775347849924,-153.96487141,0.00016,2]
[419740720,1775347849933,-150.00000001,0.00016,2]
[419740721,1775347849942,-287.70807985,0.00016,2]
[419740722,1775347849951,-256.52934676,0.00016,2]
[419740723,1775347849961,-150.0,0.00016,2]
[419740724,1775347849970,-158.80277884,0.00016,2]
[419740725,1775347849979,-1069365.92545098,0.00016,2]
[419740726,1775347851342,-313.11540083,0.00015427,2]
[419740727,1775347851384,-2994.60849894,0.00015427,2]
[419740728,1775347851426,-1458.670872,0.00015427,2]
[419740729,1775347851437,-712.40607935,0.00015427,2]
[419740730,1775347851449,-2263.64078674,0.00015427,2]
[419740731,1775347852168,-370.45,0.00013111,2]
[419740732,1775347852183,-141.55,0.00013111,2]
[419740733,1775347852193,-200.0,0.000139,2]
[419740734,1775347852202,-29.545,0.00015427,2]
[419740735,1775347852214,-643.80513405,0.00015427,2]
[419740736,1775347852226,-1028.73033201,0.00015427,2]
[419740737,1775347852237,-2435.31727346,0.00015427,2]
[419740744,1775348354510,299.0,0.0001482,118]
[419740749,1775348637070,150.0,0.00011233,120]
[419740780,1775349032469,-150.0,0.00010361,2]
[419740782,1775349032478,-300.0,0.00010361,2]
[419740784,1775349032487,-635.39999998,0.00010553,2]
[419740790,1775349032777,-1364.60000002,0.00010553,2]
[419740791,1775349032786,-1487.40127831,0.00010588,2]
[419740792,1775349032795,-51529.70571531,0.00010598,2]
[419740793,1775349033027,-34347.69602405,0.00010598,2]
[419740794,1775349033052,-264421.23493441,0.00010598,2]
[419740795,1775349033063,-16620.57660484,0.00010598,2]
[419740796,1775349033074,-87336.50234759,0.00010598,2]
[419740797,1775349033085,-124035.44664416,0.00010598,2]
[419740799,1775349038039,-616.03551293,0.00010549,2]
[419740800,1775349038049,-167.05715493,0.00010598,2]
[419740801,1775349038060,-331103.26100267,0.00010598,2]
[419740802,1775349038092,-321738.85567204,0.00010598,2]
[419740803,1775349038103,-200.0,0.00010649,2]
[419740804,1775349038112,-260.28,0.00010681,2]
[419740805,1775349038122,-300.0,0.00010696,2]
[419740806,1775349038132,-1200.0,0.00010696,2]
[419740807,1775349038143,-1200.0,0.00010697,2]
[419740808,1775349038154,-750.0,0.00010697,2]
[419740809,1775349038163,-15785.84128049,0.00010698,2]
[419740810,1775349038200,-500.0,0.00010698,2]
[419740811,1775349038257,-9550.64871951,0.00010698,2]
[419740812,1775349038266,-150.0,0.00010959,2]
[419740813,1775349038276,-616.03551291,0.00011021,2]
[419740814,1775349038286,-150.0,0.00011189,2]
[419740815,1775349038297,-3161.58353683,0.000112,2]
[419740816,1775349038306,-150.0,0.00011233,2]
[419740817,1775349038317,-321.4894086,0.00011397,2]
[419740818,1775349038327,-186.91439661,0.00011397,2]
[419740819,1775349038336,-600.0,0.00011397,2]
[419740820,1775349038345,-250.0,0.00011397,2]
[419740821,1775349038355,-1682.0,0.0001141,2]
[419740822,1775349038365,-383.5043776,0.00011433,2]
[419740823,1775349038374,-5271.792,0.00011482,2]
[419740824,1775349038384,-153.37386469,0.00011482,2]
[419740825,1775349038393,-5998.16074606,0.00011483,2]
[419740826,1775349038403,-41849.97810098,0.00011493,2]
[419740827,1775349038413,-150.0,0.00011499,2]
[419740829,1775349038422,-3700.0,0.000115,4]
[419740831,1775349038431,-1516.37,0.00011562,2]
[419740833,1775349038440,-1000.0,0.0001158,2]
[419740835,1775349038449,-15036.6123,0.00011582,2]
[419740837,1775349038458,-2999.35,0.00011582,2]
[419740839,1775349038467,-431.55,0.00011582,2]
[419740841,1775349038476,-4999.99,0.00011582,2]
[419740843,1775349038485,-150.99,0.00011582,2]
[419740845,1775349038495,-1060.4356,0.00011583,2]
[419740847,1775349038504,-1214.01619027,0.00011583,2]
[419740849,1775349038513,-9999.99,0.00011583,2]
[419740851,1775349038522,-1266.82,0.00011583,2]
[419740853,1775349038532,-499.99,0.00011583,2]
[419740855,1775349038541,-9999.99,0.00011583,2]
[419740857,1775349038550,-727.25,0.00011583,2]
[419740859,1775349038559,-150.99,0.00011583,2]
[419740861,1775349038568,-518.09,0.00011583,2]
[419740863,1775349038577,-299.99,0.00011583,2]
[419740865,1775349038587,-22934.55,0.00011583,2]
[419740867,1775349038596,-1480.95,0.00011583,2]
[419740869,1775349038606,-500.0,0.00011593,2]
[419740871,1775349038615,-500.0,0.00011593,2]
[419740873,1775349038624,-500.0,0.00011593,2]
[419740875,1775349038634,-500.0,0.00011593,2]
[419740877,1775349038643,-500.0,0.00011593,2]
[419740879,1775349038652,-500.0,0.00011593,2]
[419740881,1775349038661,-500.0,0.00011593,2]
[419740883,1775349038670,-500.0,0.00011593,2]
[419740885,1775349038679,-500.0,0.00011593,2]
[419740887,1775349038688,-500.0,0.00011593,2]
[419740889,1775349038698,-500.0,0.00011593,2]
[419740891,1775349038707,-200.0,0.00011593,2]
[419740893,1775349038716,-500.0,0.00011593,2]
[419740895,1775349038725,-500.0,0.00011593,2]
[419740897,1775349038734,-500.0,0.00011593,2]
[419740899,1775349038743,-151.0,0.00011593,2]
[419740901,1775349038752,-500.0,0.00011593,2]
[419740902,1775349038761,-151.0,0.00011593,2]
[419740904,1775349038771,-500.0,0.00011593,2]
[419740906,1775349038780,-151.0,0.00011593,2]
[419740907,1775349038790,-500.0,0.00011593,2]
[419740908,1775349038799,-151.0,0.00011593,2]
[419740909,1775349038808,-151.0,0.00011593,2]
[419740910,1775349038817,-151.0,0.00011593,2]
[419740911,1775349038827,-151.0,0.00011593,2]
[419740912,1775349038836,-151.0,0.00011593,2]
[419740913,1775349038845,-151.0,0.00011593,2]
[419740914,1775349038854,-151.0,0.00011593,2]
[419740915,1775349038864,-151.0,0.00011593,2]
[419740916,1775349038873,-151.0,0.00011593,2]
[419740917,1775349038884,-151.0,0.00011593,2]
[419740918,1775349038894,-151.0,0.00011593,2]
[419740919,1775349038903,-151.0,0.00011593,2]
[419740920,1775349038913,-153.43679859,0.00011593,2]
[419740921,1775349038922,-151.0,0.00011593,2]
[419740922,1775349038931,-151.0,0.00011593,2]
[419740923,1775349038941,-151.0,0.00011593,2]
[419740924,1775349038950,-151.0,0.00011593,2]
[419740925,1775349038959,-151.0,0.00011593,2]
[419740926,1775349038968,-1386.78395259,0.00011593,2]
[419740927,1775349038978,-151.0,0.00011593,2]
[419740928,1775349038987,-151.0,0.00011593,2]
[419740929,1775349038996,-494.63411955,0.00011593,2]
[419740930,1775349039007,-500.0,0.00011593,2]
[419740931,1775349039016,-5809.7401708,0.00011595,2]
[419740932,1775349039025,-194.01675595,0.00011599,2]
[419740933,1775349039035,-1088.73149478,0.000116,2]
[419740934,1775349039047,-7400.0,0.000116,4]
[419740935,1775349039057,-1252.77431807,0.000116,2]
[419740936,1775349039067,-2253.0,0.00011644,2]
[419740937,1775349039076,-448.989,0.00011644,2]
[419740938,1775349039086,-869.0,0.00011644,2]
[419740939,1775349039096,-500.0,0.00011673,2]
[419740940,1775349039106,-500.0,0.00011673,2]
[419740941,1775349039115,-500.0,0.00011673,2]
[419740942,1775349039124,-500.0,0.00011673,2]
[419740943,1775349039134,-500.0,0.00011673,2]
[419740944,1775349039145,-500.0,0.00011673,2]
[419740945,1775349039155,-165.01596632,0.00011673,2]
[419740946,1775349039165,-410.38561367,0.00011673,2]
[419740947,1775349039174,-500.0,0.00011673,2]
[419740948,1775349039183,-167.63444993,0.00011673,2]
[419740949,1775349039192,-500.0,0.00011673,2]
[419740950,1775349039201,-500.25875044,0.00011673,2]
[419740951,1775349039211,-500.0,0.00011673,2]
[419740952,1775349039220,-159.94420326,0.00011673,2]
[419740953,1775349039229,-500.0,0.00011673,2]
[419740954,1775349039239,-166.08637647,0.00011673,2]
[419740955,1775349039249,-495.66786549,0.00011676,2]
[419740956,1775349039259,-1131.72,0.00011676,2]
[419740957,1775349039269,-233.0,0.00011678,2]
[419740958,1775349039278,-1081.02230804,0.00011682,3]
[419740959,1775349039289,-1207.23115265,0.00011682,3]
[419740960,1775349039299,-151.0,0.00011695,2]
[419740961,1775349039308,-11200.0,0.000117,4]
[419740962,1775349039319,-1349.37202896,0.000117,2]
[419740963,1775349039328,-289.10799454,0.000117,2]
[419740964,1775349039337,-7811.95293601,0.000117,2]
[419740965,1775349039347,-300.0,0.00011757,2]
[419740966,1775349039356,-200.0,0.00011758,2]
[419740967,1775349039366,-1680.0,0.00011766,2]
[419740968,1775349039375,-576.67433813,0.00011773,2]
[419740969,1775349039385,-500.0,0.00011773,2]
[419740970,1775349039394,-500.0,0.00011773,2]
[419740971,1775349039404,-500.0,0.00011773,2]
[419740972,1775349039413,-500.52876797,0.00011773,2]
[419740973,1775349039423,-600.0,0.00011776,2]
[419740974,1775349039432,-600.0,0.00011776,2]
[419740975,1775349039443,-13572.7473,0.0001178,2]
[419740976,1775349039454,-1000.0,0.0001178,2]
[419740977,1775349039464,-30245.09645307,0.0001178,2]
[419740978,1775349039477,-3658.16629207,0.0001178,2]
[419740979,1775349039524,-1759.30545347,0.0001178,2]
[419740980,1775349039535,-919.5506304,0.0001178,2]
[419740981,1775349039547,-1463417.88117099,0.0001178,2]
[419740982,1775349039556,-14900.0,0.000118,4]
[419740983,1775349039566,-2081.68022028,0.00011812,2]
[419740984,1775349039578,-500.0,0.00011867,2]
[419740985,1775349039589,-2000.0,0.00011873,2]
[419740986,1775349039599,-18700.0,0.000119,4]
[419740987,1775349039609,-1131.72,0.0001195,2]
[419740988,1775349039620,-41849.97810095,0.00011968,2]
[419740989,1775349039630,-2000.64,0.00012055,2]
[419740990,1775349039640,-579.22838083,0.00012074,2]
[419740991,1775349039650,-29684.17,0.00012087,2]
[419740992,1775349039659,-1692.66,0.00012087,2]
[419740993,1775349039671,-200.0,0.00012141,2]
[419740994,1775349039680,-1438.09495884,0.00012141,2]
[419740995,1775349039689,-151.0,0.00012141,2]
[419740996,1775349039699,-500.0,0.00012141,2]
[419740997,1775349039708,-5809.74017073,0.0001221,2]
[419740998,1775349039717,-1000.0,0.00012221,2]
[419740999,1775349039727,-1000.0,0.00012221,2]
[419741000,1775349039736,-1000.0,0.00012221,2]
[419741001,1775349039745,-1000.0,0.00012221,2]
[419741002,1775349039754,-1000.0,0.00012221,2]
[419741003,1775349039764,-1000.0,0.00012221,2]
[419741004,1775349039774,-455.14370669,0.00012221,2]
[419741005,1775349039783,-1000.0,0.00012221,2]
[419741006,1775349039795,-1000.0,0.00012221,2]
[419741007,1775349039805,-256.34,0.00012223,2]
[419741008,1775349039815,-1131.72,0.00012224,2]
[419741009,1775349039824,-1088.73149474,0.00012317,2]
[419741010,1775349039834,-386.01505148,0.00012321,2]
[419741011,1775349039844,-500.84962238,0.00012321,2]
[419741012,1775349039853,-551.21950508,0.00012321,2]
[419741013,1775349039863,-500.0,0.00012415,2]
[419741014,1775349039872,-41849.97810095,0.00012444,2]
[419741015,1775349039882,-1131.72,0.00012498,2]
[419741016,1775349039891,-39346.91388934,0.00012542,2]
[419741017,1775349039901,-255.0,0.00012568,2]
[419741018,1775349039911,-200.0,0.00012689,2]
[419741019,1775349039920,-1491.30447232,0.00012689,2]
[419741020,1775349039930,-151.0,0.00012689,2]
[419741021,1775349039939,-500.0,0.00012689,2]
[419741022,1775349039948,-1500.0,0.00012768,2]
[419741023,1775349039957,-1500.0,0.00012768,2]
[419741024,1775349039967,-1500.0,0.00012768,2]
[419741025,1775349039977,-1500.0,0.00012768,2]
[419741026,1775349039986,-1500.0,0.00012768,2]
[419741027,1775349039995,-1500.0,0.00012768,2]
[419741028,1775349040005,-1500.0,0.00012768,2]
[419741029,1775349040015,-1131.72,0.00012772,2]
[419741030,1775349040024,-5809.74017073,0.00012825,2]
[419741031,1775349040036,-2351.0,0.00012942,2]
[419741032,1775349040045,-500.0,0.00012963,2]
[419741033,1775349040055,-39346.91388934,0.00013021,2]
[419741034,1775349040064,-1088.73149474,0.00013033,2]
[419741035,1775349040074,-1131.72,0.00013046,2]
[419741036,1775349040083,-512.0,0.00013111,2]
[419741037,1775349040093,-521.35022304,0.00013111,2]
[419741038,1775349040103,-2000.0,0.00013192,2]
[419741039,1775349040112,-500.0,0.00013237,2]
[419741040,1775349040122,-200.0,0.00013237,2]
[419741041,1775349040131,-1546.48273779,0.00013237,2]
[419741042,1775349040140,-278.13790482,0.00013237,2]
[419741043,1775349040150,-602.78280616,0.00013316,2]
[419741044,1775349040159,-2000.0,0.00013316,2]
[419741045,1775349040169,-339.64282887,0.00013316,2]
[419741046,1775349040180,-2000.0,0.00013316,2]
[419741047,1775349040190,-2000.0,0.00013316,2]
[419741048,1775349040199,-323.48036227,0.00013316,2]
[419741049,1775349040209,-1306.69519715,0.00013316,2]
[419741050,1775349040218,-1131.72,0.0001332,2]
[419741051,1775349040228,-583.509781,0.00013424,2]
[419741052,1775349040237,-381.869584,0.00013424,2]
[419741053,1775349040247,-2456.205614,0.00013424,2]
[419741054,1775349040256,-609.293836,0.00013424,2]
[419741055,1775349040266,-218.211191,0.00013424,2]
[419741056,1775349040275,-1806.000138,0.00013424,2]
[419741057,1775349040284,-5318.07898,0.00013424,2]
[419741058,1775349040294,-329.018675,0.00013424,2]
[419741059,1775349040304,-3574.837771,0.00013424,2]
[419741060,1775349040313,-5809.74017073,0.0001344,2]
[419741061,1775349040324,-39346.91388934,0.00013499,2]
[419741062,1775349040334,-414.96680186,0.00013511,2]
[419741063,1775349040343,-1131.7691124,0.00013594,2]
[419741064,1775349040352,-500.0,0.00013698,2]
[419741065,1775349040362,-500.0,0.00013698,2]
[419741066,1775349040371,-500.0,0.00013698,2]
[419741067,1775349040381,-500.0,0.00013698,2]
[419741068,1775349040390,-500.0,0.00013698,2]
[419741069,1775349040399,-500.0,0.00013698,2]
[419741070,1775349040409,-500.0,0.00013698,2]
[419741071,1775349040418,-500.0,0.00013698,2]
[419741072,1775349040428,-500.0,0.00013698,2]
[419741073,1775349040438,-500.0,0.00013698,2]
[419741074,1775349040447,-500.0,0.00013698,2]
[419741075,1775349040457,-500.0,0.00013698,2]
[419741076,1775349040466,-500.0,0.00013698,2]
[419741077,1775349040476,-500.0,0.00013698,2]
[419741078,1775349040485,-500.0,0.00013698,2]
[419741079,1775349040495,-500.0,0.00013698,2]
[419741080,1775349040504,-556.64,0.00013698,2]
[419741081,1775349040514,-556.64,0.00013698,2]
[419741082,1775349040524,-556.64,0.00013698,2]
[419741083,1775349040533,-556.64,0.00013698,2]
[419741084,1775349040544,-556.64,0.00013698,2]
[419741085,1775349040553,-556.64,0.00013698,2]
[419741086,1775349040563,-556.64,0.00013698,2]
[419741087,1775349040572,-500.0,0.00013698,2]
[419741088,1775349040582,-500.0,0.00013698,2]
[419741089,1775349040592,-500.0,0.00013698,2]
[419741090,1775349040601,-500.0,0.00013698,2]
[419741091,1775349040611,-500.0,0.00013698,2]
[419741092,1775349040621,-500.0,0.00013698,2]
[419741093,1775349040631,-500.0,0.00013698,2]
[419741094,1775349040641,-500.0,0.00013698,2]
[419741095,1775349040651,-500.0,0.00013698,2]
[419741096,1775349040660,-500.0,0.00013698,2]
[419741097,1775349040670,-500.0,0.00013698,2]
[419741098,1775349040679,-500.0,0.00013698,2]
[419741099,1775349040688,-500.0,0.00013698,2]
[419741100,1775349040697,-500.0,0.00013698,2]
[419741101,1775349040706,-431.42104867,0.00013698,2]
[419741102,1775349040716,-500.0,0.00013698,2]
[419741103,1775349040725,-500.0,0.00013698,2]
[419741104,1775349040735,-500.0,0.00013698,2]
[419741105,1775349040744,-500.0,0.00013698,2]
[419741106,1775349040753,-500.0,0.00013698,2]
[419741107,1775349040762,-500.0,0.00013698,2]
[419741108,1775349040772,-500.0,0.00013698,2]
[419741109,1775349040782,-500.0,0.00013698,2]
[419741110,1775349040791,-500.0,0.00013698,2]
[419741111,1775349040801,-500.0,0.00013698,2]
[419741112,1775349040810,-500.0,0.00013698,2]
[419741113,1775349040819,-500.0,0.00013698,2]
[419741114,1775349040829,-500.0,0.00013698,2]
[419741115,1775349040838,-500.0,0.00013698,2]
[419741116,1775349040847,-224.92074635,0.00013698,2]
[419741117,1775349040858,-505.68583514,0.00013698,2]
[419741118,1775349040867,-789.72,0.00013698,2]
[419741119,1775349040877,-789.72,0.00013698,2]
[419741120,1775349040887,-789.72,0.00013698,2]
[419741121,1775349040896,-789.72,0.00013698,2]
[419741122,1775349040906,-789.72,0.00013698,2]
[419741123,1775349040915,-789.72,0.00013698,2]
[419741124,1775349040927,-789.72,0.00013698,2]
[419741125,1775349040936,-789.72,0.00013698,2]
[419741126,1775349040947,-789.72,0.00013698,2]
[419741127,1775349040957,-789.72,0.00013698,2]
[419741128,1775349040967,-789.72,0.00013698,2]
[419741129,1775349040977,-789.72,0.00013698,2]
[419741130,1775349040987,-789.72,0.00013698,2]
[419741131,1775349040996,-789.72,0.00013698,2]
[419741132,1775349041006,-789.72,0.00013698,2]
[419741133,1775349041015,-500.0,0.00013698,2]
[419741134,1775349041025,-500.0,0.00013698,2]
[419741135,1775349041035,-500.0,0.00013698,2]
[419741136,1775349041044,-500.0,0.00013698,2]
[419741137,1775349041055,-500.0,0.00013698,2]
[419741138,1775349041064,-500.0,0.00013698,2]
[419741139,1775349041074,-500.0,0.00013698,2]
[419741140,1775349041083,-500.0,0.00013698,2]
[419741141,1775349041094,-500.0,0.00013698,2]
[419741142,1775349041104,-500.0,0.00013698,2]
[419741143,1775349041114,-500.0,0.00013698,2]
[419741144,1775349041123,-500.0,0.00013698,2]
[419741145,1775349041132,-500.0,0.00013698,2]
[419741147,1775349041141,-500.0,0.00013698,2]
[419741149,1775349041151,-474.02553387,0.00013698,2]
[419741150,1775349041160,-500.0,0.00013698,2]
[419741151,1775349041170,-500.0,0.00013698,2]
[419741152,1775349041179,-524.62310641,0.00013698,2]
[419741153,1775349041188,-794.38,0.00013698,2]
[419741154,1775349041198,-794.38,0.00013698,2]
[419741155,1775349041207,-794.38,0.00013698,2]
[419741156,1775349041217,-794.38,0.00013698,2]
[419741157,1775349041227,-794.38,0.00013698,2]
[419741158,1775349041237,-794.38,0.00013698,2]
[419741161,1775349041488,-794.38,0.00013698,2]
[419741162,1775349041498,-794.38,0.00013698,2]
[419741163,1775349041509,-794.38,0.00013698,2]
[419741164,1775349041519,-794.38,0.00013698,2]
[419741165,1775349041528,-794.38,0.00013698,2]
[419741166,1775349041538,-794.38,0.00013698,2]
[419741167,1775349041547,-794.38,0.00013698,2]
[419741168,1775349041557,-794.38,0.00013698,2]
[419741169,1775349041567,-794.38,0.00013698,2]
[419741170,1775349041576,-794.38,0.00013698,2]
[419741171,1775349041586,-794.38,0.00013698,2]
[419741172,1775349041595,-500.0,0.00013698,2]
[419741173,1775349041606,-500.0,0.00013698,2]
[419741174,1775349041617,-500.0,0.00013698,2]
[419741175,1775349041627,-500.0,0.00013698,2]
[419741176,1775349041638,-500.0,0.00013698,2]
[419741177,1775349041647,-500.0,0.00013698,2]
[419741178,1775349041657,-500.0,0.00013698,2]
[419741179,1775349041667,-500.0,0.00013698,2]
[419741180,1775349041677,-500.0,0.00013698,2]
[419741181,1775349041687,-500.0,0.00013698,2]
[419741182,1775349041696,-500.0,0.00013698,2]
[419741183,1775349041707,-500.0,0.00013698,2]
[419741184,1775349041716,-500.0,0.00013698,2]
[419741185,1775349041727,-500.0,0.00013698,2]
[419741186,1775349041737,-500.0,0.00013698,2]
[419741187,1775349041746,-500.0,0.00013698,2]
[419741188,1775349041756,-500.0,0.00013698,2]
[419741189,1775349041766,-500.0,0.00013698,2]
[419741190,1775349041776,-500.0,0.00013698,2]
[419741191,1775349041786,-500.0,0.00013698,2]
[419741192,1775349041796,-500.0,0.00013698,2]
[419741193,1775349041806,-500.0,0.00013698,2]
[419741194,1775349041816,-500.0,0.00013698,2]
[419741195,1775349041826,-500.0,0.00013698,2]
[419741196,1775349041835,-500.0,0.00013698,2]
[419741197,1775349041845,-500.0,0.00013698,2]
[419741198,1775349041855,-500.0,0.00013698,2]
[419741199,1775349041865,-500.0,0.00013698,2]
[419741200,1775349041875,-500.0,0.00013698,2]
[419741201,1775349041885,-500.0,0.00013698,2]
[419741202,1775349041896,-500.0,0.00013698,2]
[419741203,1775349041905,-500.0,0.00013698,2]
[419741204,1775349041914,-500.0,0.00013698,2]
[419741205,1775349041924,-500.0,0.00013698,2]
[419741206,1775349041934,-500.0,0.00013698,2]
[419741207,1775349041944,-500.0,0.00013698,2]
[419741208,1775349041954,-500.0,0.00013698,2]
[419741209,1775349041963,-500.0,0.00013698,2]
[419741210,1775349041973,-500.0,0.00013698,2]
[419741211,1775349041983,-500.0,0.00013698,2]
[419741212,1775349041993,-500.0,0.00013698,2]
[419741213,1775349042002,-500.0,0.00013698,2]
[419741214,1775349042012,-581.88386575,0.00013698,2]
[419741215,1775349042022,-500.0,0.00013698,2]
[419741216,1775349042032,-500.0,0.00013698,2]
[419741217,1775349042042,-500.0,0.00013698,2]
[419741218,1775349042052,-500.0,0.00013698,2]
[419741219,1775349042062,-500.0,0.00013698,2]
[419741220,1775349042071,-325.34166394,0.00013698,2]
[419741221,1775349042080,-500.0,0.00013698,2]
[419741222,1775349042090,-500.0,0.00013698,2]
[419741223,1775349042100,-500.0,0.00013698,2]
[419741224,1775349042110,-500.0,0.00013698,2]
[419741225,1775349042120,-500.0,0.00013698,2]
[419741226,1775349042130,-500.0,0.00013698,2]
[419741227,1775349042140,-500.0,0.00013698,2]
[419741228,1775349042150,-500.0,0.00013698,2]
[419741229,1775349042161,-500.0,0.00013698,2]
[419741230,1775349042171,-500.0,0.00013698,2]
[419741231,1775349042180,-500.0,0.00013698,2]
[419741232,1775349042190,-500.0,0.00013698,2]
[419741233,1775349042200,-507.66281722,0.00013698,2]
[419741234,1775349042210,-500.0,0.00013698,2]
[419741235,1775349042225,-500.0,0.00013698,2]
[419741236,1775349042235,-500.0,0.00013698,2]
[419741237,1775349042245,-500.0,0.00013698,2]
[419741238,1775349042255,-500.0,0.00013698,2]
[419741239,1775349042264,-500.0,0.00013698,2]
[419741240,1775349042274,-500.0,0.00013698,2]